fUSD/lending_fUSD_20251206
["ID","MTS","AMOUNT","RATE_DAILY","PERIOD"]
[396536584,1765042262649,-302.263134,0.00016986,2]
[396536585,1765042262658,-2352.14,0.00016986,2]
[396536586,1765042262668,-3061.64,0.00016986,2]
[396536587,1765042262677,-500.0,0.00016986,2]
[396536588,1765042262686,-2719.95,0.00016986,2]
[396536589,1765042262696,-1649.05,0.00016986,2]
[396536590,1765042262705,-573.01,0.00016986,2]
[396536591,1765042262715,-302.263134,0.00016986,2]
[396536592,1765042262724,-2831.56,0.00016986,2]
[396536593,1765042262734,-151.0,0.00016986,2]
[396536594,1765042262744,-837.586815,0.00016986,2]
[396536595,1765042262753,-3329.48,0.00016986,2]
[396536596,1765042262763,-837.586815,0.00016986,2]
[396536597,1765042262772,-151.0,0.00016986,2]
[396536598,1765042262781,-500.0,0.00016986,2]
[396536599,1765042262791,-837.586815,0.00016986,2]
[396536600,1765042262800,-500.0,0.00016986,2]
[396536601,1765042262810,-500.0,0.00016986,2]
[396536602,1765042262819,-500.0,0.00016986,2]
[396536603,1765042262828,-837.586815,0.00016986,2]
[396536604,1765042262838,-500.0,0.00016986,2]
[396536605,1765042262847,-500.0,0.00016986,2]
[396536606,1765042262857,-151.0,0.00016986,2]
[396536607,1765042262866,-811.49,0.00016986,2]
[396536608,1765042262876,-3464.16,0.00016986,2]
[396536609,1765042262886,-819.24,0.00016986,2]
[396536610,1765042262895,-500.0,0.00016986,2]
[396536611,1765042262904,-1541.65,0.00016986,2]
[396536612,1765042262913,-602.66,0.00016986,2]
[396536613,1765042262922,-500.0,0.00016986,2]
[396536614,1765042262931,-500.0,0.00016986,2]
[396536615,1765042262941,-500.0,0.00016986,2]
[396536616,1765042262951,-500.0,0.00016986,2]
[396536617,1765042262960,-936.41,0.00016986,2]
[396536618,1765042262970,-2109.59,0.00016986,2]
[396536619,1765042262979,-1502.83,0.00016986,2]
[396536620,1765042262989,-500.0,0.00016986,2]
[396536621,1765042262999,-788.82,0.00016986,2]
[396536622,1765042263009,-739.46,0.00016986,2]
[396536623,1765042263018,-500.0,0.00016986,2]
[396536624,1765042263027,-2827.11,0.00016986,2]
[396536625,1765042263037,-503.11276695,0.00016986,2]
[396536626,1765042263047,-1107.95,0.00016986,2]
[396536627,1765042263056,-151.0,0.00016986,2]
[396536628,1765042263065,-500.0,0.00016986,2]
[396536629,1765042263075,-1004.86,0.00016986,2]
[396536630,1765042263084,-500.0,0.00016986,2]
[396536631,1765042263094,-500.0,0.00016986,2]
[396536632,1765042263104,-500.0,0.00016986,2]
[396536633,1765042263114,-3306.03,0.00016986,2]
[396536634,1765042263123,-500.0,0.00016986,2]
[396536635,1765042263134,-500.0,0.00016986,2]
[396536636,1765042263143,-579.77,0.00016986,2]
[396536637,1765042263153,-500.0,0.00016986,2]
[396536638,1765042263162,-151.0,0.00016986,2]
[396536639,1765042263172,-500.0,0.00016986,2]
[396536640,1765042263182,-1706.53,0.00016986,2]
[396536641,1765042263191,-3237.52,0.00016986,2]
[396536642,1765042263200,-500.0,0.00016986,2]
[396536643,1765042263210,-3007.92,0.00016986,2]
[396536644,1765042263218,-503.44584738,0.00016986,2]
[396536645,1765042263227,-653.99,0.00016986,2]
[396536646,1765042263237,-500.0,0.00016986,2]
[396536647,1765042263246,-500.0,0.00016986,2]
[396536648,1765042263256,-2416.16,0.00016986,2]
[396536649,1765042263266,-1294.48,0.00016986,2]
[396536650,1765042263275,-500.0,0.00016986,2]
[396536651,1765042263284,-151.0,0.00016986,2]
[396536652,1765042263294,-151.0,0.00016986,2]
[396536653,1765042263303,-500.0,0.00016986,2]
[396536654,1765042263312,-500.0,0.00016986,2]
[396536655,1765042263321,-1256.71,0.00016986,2]
[396536656,1765042263330,-151.0,0.00016986,2]
[396536657,1765042263340,-151.0,0.00016986,2]
[396536658,1765042263350,-500.0,0.00016986,2]
[396536659,1765042263359,-540.45,0.00016986,2]
[396536660,1765042263369,-500.0,0.00016986,2]
[396536661,1765042263378,-151.0,0.00016986,2]
[396536662,1765042263388,-771.37,0.00016986,2]
[396536663,1765042263397,-500.0,0.00016986,2]
[396536664,1765042263407,-547.54,0.00016986,2]
[396536665,1765042263417,-500.0,0.00016986,2]
[396536666,1765042263426,-500.0,0.00016986,2]
[396536667,1765042263436,-151.0,0.00016986,2]
[396536668,1765042263445,-197.343977,0.00016986,2]
[396536669,1765042263454,-957.83,0.00016986,2]
[396536670,1765042263464,-500.0,0.00016986,2]
[396536671,1765042263473,-2347.68,0.00016986,2]
[396536672,1765042263483,-4608.77,0.00016986,2]
[396536673,1765042263493,-500.0,0.00016986,2]
[396536674,1765042263503,-500.0,0.00016986,2]
[396536675,1765042263512,-682.38,0.00016986,2]
[396536676,1765042263523,-3341.0,0.00016986,2]
[396536677,1765042263533,-54390.99,0.00016986,2]
[396536678,1765042263543,-500.0,0.00016999,2]
[396536679,1765042263552,-500.0,0.00016999,2]
[396536680,1765042263562,-151.0,0.00016999,2]
[396536681,1765042263573,-151.0,0.00016999,2]
[396536682,1765042263582,-173.584678,0.00016999,2]
[396536683,1765042263592,-153.670569,0.00016999,2]
[396536684,1765042263601,-151.0,0.00016999,2]
[396536685,1765042263610,-151.0,0.00016999,2]
[396536686,1765042263620,-153.670569,0.00016999,2]
[396536687,1765042263630,-151.0,0.00016999,2]
[396536688,1765042263640,-151.0,0.00016999,2]
[396536689,1765042263650,-153.670569,0.00016999,2]
[396536690,1765042263729,-151.0,0.00016999,2]
[396536691,1765042263739,-153.67056641,0.00016999,2]
[396536692,1765042263749,-302.263134,0.00016999,2]
[396536693,1765042263758,-302.263134,0.00016999,2]
[396536694,1765042263769,-302.263134,0.00016999,2]
[396536695,1765042263779,-302.263131,0.00016999,2]
[396536696,1765042263789,-151.0,0.00016999,2]
[396536697,1765042263799,-837.586815,0.00016999,2]
[396536698,1765042263809,-837.586815,0.00016999,2]
[396536699,1765042263819,-151.0,0.00016999,2]
[396536700,1765042263831,-837.586815,0.00016999,2]
[396536701,1765042263840,-837.586816,0.00016999,2]
[396536702,1765042263851,-151.0,0.00016999,2]
[396536703,1765042263860,-152.313717,0.00016999,2]
[396536704,1765042263871,-156.784236,0.00016999,2]
[396536705,1765042263882,-2234.35,0.00016999,2]
[396536706,1765042263891,-2234.35,0.00016999,2]
[396536707,1765042263900,-2234.35,0.00016999,2]
[396536708,1765042263910,-2234.35,0.00016999,2]
[396536709,1765042263921,-2234.35,0.00016999,2]
[396536710,1765042263930,-2234.35,0.00016999,2]
[396536711,1765042263940,-2234.35,0.00016999,2]
[396536712,1765042263949,-2234.35,0.00016999,2]
[396536713,1765042263959,-2234.35,0.00016999,2]
[396536714,1765042263967,-2234.35,0.00016999,2]
[396536715,1765042263976,-2234.35,0.00016999,2]
[396536716,1765042263986,-2234.35,0.00016999,2]
[396536717,1765042263995,-2234.35,0.00016999,2]
[396536718,1765042264014,-2234.35,0.00016999,2]
[396536719,1765042264024,-2234.35,0.00016999,2]
[396536720,1765042264034,-2234.35,0.00016999,2]
[396536721,1765042264043,-2234.41096353,0.00016999,2]
[396536722,1765042264052,-4390.0,0.00017,2]
[396536723,1765042264062,-1000.0,0.00017,17]
[396536724,1765042264071,-619189.37595142,0.00017,2]
[396536725,1765042264668,-257.14460464,0.00017,2]
[396536726,1765042264708,-500.0,0.00016986,2]
[396536727,1765042264718,-500.0,0.00017,2]
[396536728,1765042265067,-500.0,0.00016438,2]
[396536729,1765042265076,-1204.3,0.00016438,2]
[396536730,1765042265085,-143.42,0.00016438,2]
[396536731,1765042266058,-1.7e-07,0.00016438,2]
[396536732,1765042266078,-525.70999983,0.00016438,2]
[396536733,1765042266088,-563.48287915,0.00016612,2]
[396536734,1765042266098,-511.36870198,0.00016712,2]
[396536735,1765042266106,-301.65871004,0.00016712,2]
[396536736,1765042266123,-902.64128996,0.00016712,2]
[396536737,1765042266132,-669.13,0.00016712,2]
[396536738,1765042266142,-26.62698752,0.00016986,2]
[396536739,1765042266251,-473.37301248,0.00016986,2]
[396536740,1765042266264,-1204.3,0.00016986,2]
[396536741,1765042266274,-669.13,0.00016986,2]
[396536742,1765042266283,-418926.87349161,0.00017,2]
[396536743,1765042266296,-4733.18646971,0.00017,2]
[396536746,1765042267691,-611.0,0.00015652,2]
[396536747,1765042267701,-483.560553,0.00016712,2]
[396536748,1765042267710,-483.560553,0.00016712,2]
[396536749,1765042267720,-483.560553,0.00016712,2]
[396536750,1765042267730,-483.560553,0.00016712,2]
[396536751,1765042267739,-483.560553,0.000168,2]
[396536752,1765042267749,-483.560553,0.000168,2]
[396536753,1765042267759,-483.560553,0.00016986,2]
[396536754,1765042267769,-483.560553,0.00016986,2]
[396536755,1765042267778,-145.465576,0.00017,2]
[396536815,1765042381280,165.2,0.00012615,2]
[396536822,1765042437140,9834.81,0.00013233,2]
[396536823,1765042437162,91.47,0.00013233,2]
[396536839,1765042547129,158.2,7.728e-05,2]
[396536840,1765042547336,158.2,8.832e-05,2]
[396536841,1765042547558,158.2,9.935e-05,2]
[396536842,1765042547759,158.2,0.00011039,2]
[396536843,1765042547965,158.2,0.00012143,2]
[396536844,1765042548173,158.2,0.00013247,2]
[396536848,1765042634350,8396.11,0.00025,120]
[396537741,1765043264247,1583.9205721,0.00025,120]
[396538876,1765043432258,-461.17361602,0.00013501,2]
[396538877,1765043432292,-527.69098567,0.00013501,2]
[396538878,1765043432304,-2616.64071031,0.00013501,2]
[396538879,1765043432314,-261.0,0.00013501,2]
[396538880,1765043432324,-300.0,0.00013568,2]
[396538881,1765043432333,-1200.0,0.00013568,2]
[396538882,1765043432343,-300.0,0.00013568,2]
[396538883,1765043432352,-6600.7,0.00013569,2]
[396538884,1765043432362,-266.66,0.0001357,2]
[396538885,1765043432371,-164.65002493,0.0001357,2]
[396538886,1765043432381,-1200.0,0.00013667,2]
[396538887,1765043432391,-500.0,0.00013698,2]
[396538888,1765043432401,-500.0,0.00013698,2]
[396538889,1765043432411,-327.04207085,0.00013698,2]
[396538890,1765043432420,-510.70545985,0.00013698,2]
[396538891,1765043432430,-232.5786,0.00014126,2]
[396538892,1765043432439,-311.1,0.00014126,2]
[396538893,1765043432449,-200.0,0.00014126,2]
[396538894,1765043432459,-207.4,0.00014126,2]
[396538895,1765043432469,-316.61127889,0.00014126,2]
[396538896,1765043432478,-158.2,0.00014351,2]
[396538897,1765043432487,-250.0,0.0001458,2]
[396538898,1765043432498,-150.99,0.00014871,2]
[396538899,1765043432507,-420.0,0.00014871,2]
[396538900,1765043432518,-162.0,0.00014871,2]
[396538901,1765043432528,-1680.0,0.00014925,2]
[396538902,1765043432538,-250.0,0.00014926,2]
[396538903,1765043432547,-500.0,0.00015008,2]
[396538904,1765043432557,-437.0,0.00015158,2]
[396538906,1765043432566,-1204.47,0.0001525,2]
[396538907,1765043432576,-88.66900581,0.00015346,2]
[396538942,1765043433097,-97.33099419,0.00015346,2]
[396538943,1765043433107,-158.2,0.00015455,2]
[396538944,1765043433117,-52.78900581,0.00015485,2]
[396538945,1765043433163,-394.17718249,0.00015485,2]
[396538946,1765043433198,-53.0338117,0.00015485,2]
[396538947,1765043433207,-291.97193531,0.00015485,2]
[396538948,1765043433216,-655.98425299,0.00015486,2]
[396538949,1765043433227,-1126.55618914,0.00015486,2]
[396538950,1765043433256,-3622.27346408,0.00015486,2]
[396538951,1765043433267,-407.74984699,0.00015486,2]
[396538952,1765043433279,-1649.8990019,0.00015486,2]
[396538953,1765043433302,-646.62018074,0.00015486,2]
[396538954,1765043433313,-1166.91586416,0.00015486,2]
[396538955,1765043433323,-411.18957084,0.00015495,2]
[396538956,1765043433332,-500.0,0.00015576,2]
[396538957,1765043433341,-500.0,0.00015576,2]
[396538958,1765043433351,-500.0,0.00015576,2]
[396538959,1765043433360,-500.0,0.00015576,2]
[396538960,1765043433369,-500.0,0.00015576,2]
[396538961,1765043433379,-151.0,0.00015576,2]
[396538962,1765043433387,-500.0,0.00015576,2]
[396538963,1765043433397,-500.0,0.00015576,2]
[396538964,1765043433407,-500.0,0.00015576,2]
[396538965,1765043433416,-500.0,0.00015576,2]
[396538966,1765043433425,-500.0,0.00015576,2]
[396538967,1765043433434,-86.020425,0.00015576,2]
[396539072,1765043438318,-413.979575,0.00015576,2]
[396539073,1765043438328,-500.0,0.00015576,2]
[396539075,1765043438337,-1000.0,0.00015576,2]
[396539076,1765043438348,-500.0,0.00015576,2]
[396539077,1765043438358,-1000.0,0.00015576,2]
[396539079,1765043438368,-500.0,0.00015576,2]
[396539080,1765043438379,-500.0,0.00015576,2]
[396539082,1765043438388,-1000.0,0.00015576,2]
[396539083,1765043438398,-500.0,0.00015576,2]
[396539084,1765043438409,-500.0,0.00015576,2]
[396539086,1765043438419,-1000.0,0.00015576,2]
[396539087,1765043438429,-500.0,0.00015576,2]
[396539088,1765043438438,-1000.0,0.00015576,2]
[396539090,1765043438448,-500.0,0.00015576,2]
[396539091,1765043438458,-500.0,0.00015576,2]
[396539093,1765043438468,-1000.0,0.00015576,2]
[396539094,1765043438479,-500.0,0.00015576,2]
[396539095,1765043438489,-500.0,0.00015576,2]
[396539097,1765043438499,-1000.0,0.00015576,2]
[396539098,1765043438509,-500.0,0.00015576,2]
[396539100,1765043438519,-151.0,0.00015576,2]
[396539101,1765043438530,-1000.0,0.00015576,2]
[396539102,1765043438539,-500.0,0.00015576,2]
[396539104,1765043438549,-151.0,0.00015576,2]
[396539105,1765043438559,-500.0,0.00015576,2]
[396539106,1765043438568,-151.0,0.00015576,2]
[396539108,1765043438578,-500.0,0.00015576,2]
[396539109,1765043438589,-151.0,0.00015576,2]
[396539111,1765043438598,-500.0,0.00015576,2]
[396539112,1765043438608,-500.0,0.00015576,2]
[396539113,1765043438618,-500.0,0.00015576,2]
[396539115,1765043438627,-200.0,0.00015576,2]
[396539116,1765043438636,-166.68556891,0.00015576,2]
[396539117,1765043438645,-224.16097849,0.00015585,2]
[396539119,1765043438655,-500.0,0.00015585,2]
[396539120,1765043438666,-168.11632206,0.00015585,2]
[396539121,1765043438676,-364.39726536,0.00015585,2]
[396539123,1765043438685,-43095.71,0.00015586,2]
[396539124,1765043438695,-150.0,0.00015672,2]
[396539126,1765043438704,-185.94811774,0.0001572,2]
[396539127,1765043438714,-160.27,0.00015799,2]
[396539128,1765043438723,-1077.0,0.00015822,2]
[396539130,1765043438732,-2500.0,0.000159,2]
[396539131,1765043438742,-3660.74904161,0.00015972,2]
[396539132,1765043438751,-649.21,0.0001599,3]
[396539134,1765043438760,-981.5,0.0001599,2]
[396539135,1765043438769,-183921.06,0.00016,2]
[396539136,1765043438780,-611.0,0.00016072,2]
[396539138,1765043438789,-3446.0,0.00016072,2]
[396539139,1765043438799,-1323.0,0.00016072,2]
[396539141,1765043438809,-1605.0,0.00016072,2]
[396539142,1765043438819,-1259.0,0.00016072,2]
[396539143,1765043438828,-614.0,0.00016072,2]
[396539145,1765043438838,-1195.0,0.00016072,2]
[396539146,1765043438847,-907.0,0.00016072,2]
[396539147,1765043438857,-562.0,0.00016072,2]
[396539149,1765043438871,-253.0,0.00016072,2]
[396539150,1765043438881,-6513.0,0.00016072,2]
[396539152,1765043438891,-3660.74904153,0.00016075,2]
[396539153,1765043438900,-473.2246,0.00016098,2]
[396539154,1765043438910,-3660.74904153,0.00016178,2]
[396539156,1765043438919,-4201.467,0.00016196,2]
[396539157,1765043438928,-188.413,0.00016196,2]
[396539158,1765043438937,-1000.0,0.00016197,3]
[396539160,1765043438947,-3660.74904153,0.00016281,2]
[396539161,1765043438956,-587.0,0.00016299,2]
[396539163,1765043438966,-794.42655187,0.00016338,2]
[396539164,1765043438974,-10000.0,0.00016338,2]
[396539165,1765043438983,-3660.74904153,0.00016384,2]
[396539167,1765043438993,-794.42655182,0.000164,2]
[396539168,1765043439002,-2351.0,0.00016417,2]
[396539169,1765043439012,-981.5,0.00016428,2]
[396539171,1765043439021,-151.0,0.00016435,2]
[396539172,1765043439031,-151.0,0.00016435,2]
[396539173,1765043439040,-500.0,0.00016437,2]
[396539175,1765043439049,-494.34522186,0.00016437,2]
[396539176,1765043439058,-500.0,0.00016437,2]
[396539178,1765043439067,-500.0,0.00016437,2]
[396539179,1765043439077,-500.0,0.00016437,2]
[396539180,1765043439086,-588.24188777,0.00016437,2]
[396539182,1765043439095,-500.0,0.00016437,2]
[396539183,1765043439105,-500.0,0.00016437,2]
[396539184,1765043439114,-500.0,0.00016437,2]
[396539186,1765043439123,-500.0,0.00016437,2]
[396539187,1765043439134,-500.0,0.00016437,2]
[396539189,1765043439143,-223.9422061,0.00016437,2]
[396539190,1765043439152,-501.65086922,0.00016438,2]
[396539191,1765043439161,-500.0,0.00016438,2]
[396539193,1765043439170,-500.0,0.00016438,2]
[396539194,1765043439179,-502.41543289,0.00016438,2]
[396539195,1765043439190,-501.43523502,0.00016438,2]
[396539197,1765043439199,-500.0,0.00016438,2]
[396539198,1765043439209,-501.77348217,0.00016438,2]
[396539200,1765043439218,-501.83538398,0.00016438,2]
[396539201,1765043439228,-2712.83,0.00016438,2]
[396539202,1765043439237,-503.09490871,0.00016438,2]
[396539204,1765043439246,-887.78,0.00016438,2]
[396539205,1765043439255,-500.0,0.00016438,2]
[396539207,1765043439264,-500.0,0.00016438,2]
[396539208,1765043439273,-500.0,0.00016438,2]
[396539209,1765043439282,-500.0,0.00016438,2]
[396539210,1765043439291,-500.0,0.00016438,2]
[396539211,1765043439300,-500.0,0.00016438,2]
[396539212,1765043439309,-500.0,0.00016438,2]
[396539213,1765043439318,-500.82063503,0.00016438,2]
[396539214,1765043439327,-500.0,0.00016438,2]
[396539215,1765043439336,-500.0,0.00016438,2]
[396539216,1765043439344,-500.0,0.00016438,2]
[396539217,1765043439354,-500.0,0.00016438,2]
[396539218,1765043439362,-500.0,0.00016438,2]
[396539219,1765043439371,-500.0,0.00016438,2]
[396539220,1765043439380,-500.0,0.00016438,2]
[396539221,1765043439389,-503.91104938,0.00016438,2]
[396539222,1765043439398,-3000.47,0.00016438,2]
[396539223,1765043439407,-500.0,0.00016438,2]
[396539224,1765043439416,-500.0,0.00016438,2]
[396539225,1765043439425,-500.0,0.00016438,2]
[396539226,1765043439434,-500.0,0.00016438,2]
[396539227,1765043439443,-503.84108202,0.00016438,2]
[396539228,1765043439452,-715.4,0.00016438,2]
[396539229,1765043439460,-501.30040746,0.00016438,2]
[396539230,1765043439469,-501.32258162,0.00016438,2]
[396539231,1765043439478,-500.0,0.00016438,2]
[396539232,1765043439487,-500.0,0.00016438,2]
[396539233,1765043439496,-500.0,0.00016438,2]
[396539234,1765043439505,-500.0,0.00016438,2]
[396539235,1765043439514,-502.83381647,0.00016438,2]
[396539236,1765043439523,-500.0,0.00016438,2]
[396539237,1765043439532,-502.19494612,0.00016438,2]
[396539238,1765043439541,-500.0,0.00016438,2]
[396539239,1765043439549,-500.78874673,0.00016438,2]
[396539240,1765043439558,-500.0,0.00016438,2]
[396539241,1765043439567,-500.0,0.00016438,2]
[396539242,1765043439576,-1283.54,0.00016438,2]
[396539243,1765043439584,-500.0,0.00016438,2]
[396539244,1765043439593,-2472.34,0.00016438,2]
[396539245,1765043439602,-501.12923414,0.00016438,2]
[396539246,1765043439610,-500.0,0.00016438,2]
[396539247,1765043439620,-500.0,0.00016438,2]
[396539248,1765043439628,-500.0,0.00016438,2]
[396539249,1765043439637,-500.0,0.00016438,2]
[396539250,1765043439646,-500.0,0.00016438,2]
[396539251,1765043439655,-500.0,0.00016438,2]
[396539252,1765043439663,-500.0,0.00016438,2]
[396539253,1765043439672,-503.62195892,0.00016438,2]
[396539254,1765043439681,-500.0,0.00016438,2]
[396539255,1765043439690,-562.38,0.00016438,2]
[396539256,1765043439698,-500.0,0.00016438,2]
[396539257,1765043439707,-500.0,0.00016438,2]
[396539258,1765043439716,-500.0,0.00016438,2]
[396539259,1765043439725,-502.62767731,0.00016438,2]
[396539260,1765043439733,-500.0,0.00016438,2]
[396539261,1765043439742,-500.0,0.00016438,2]
[396539262,1765043439751,-500.0,0.00016438,2]
[396539263,1765043439760,-500.0,0.00016438,2]
[396539264,1765043439769,-500.0,0.00016438,2]
[396539265,1765043439777,-500.0,0.00016438,2]
[396539266,1765043439786,-822.64,0.00016438,2]
[396539267,1765043439795,-501.79329647,0.00016438,2]
[396539268,1765043439805,-500.0,0.00016438,2]
[396539269,1765043439813,-500.0,0.00016438,2]
[396539270,1765043439822,-308.95914881,0.00016438,2]
[396539271,1765043439831,-502.28455541,0.00016438,2]
[396539272,1765043439840,-597.26,0.00016438,2]
[396539273,1765043439850,-500.0,0.00016438,2]
[396539274,1765043439858,-500.0,0.00016438,2]
[396539275,1765043439872,-500.0,0.00016438,2]
[396539276,1765043439881,-500.0,0.00016438,2]
[396539277,1765043439890,-2796.08,0.00016438,2]
[396539278,1765043439899,-502.822061,0.00016438,2]
[396539279,1765043439910,-500.0,0.00016438,2]
[396539280,1765043439919,-500.0,0.00016438,2]
[396539281,1765043439929,-500.0,0.00016438,2]
[396539282,1765043439940,-500.0,0.00016438,2]
[396539283,1765043439950,-500.0,0.00016438,2]
[396539284,1765043439959,-500.0,0.00016438,2]
[396539285,1765043439968,-503.56278348,0.00016438,2]
[396539286,1765043439977,-500.0,0.00016438,2]
[396539287,1765043439986,-500.0,0.00016438,2]
[396539288,1765043439996,-274.59268005,0.00016438,2]
[396539289,1765043440006,-919.59,0.00016438,2]
[396539290,1765043440015,-500.0,0.00016438,2]
[396539291,1765043440024,-500.0,0.00016438,2]
[396539292,1765043440033,-500.0,0.00016438,2]
[396539293,1765043440043,-500.0,0.00016438,2]
[396539294,1765043440052,-771.88,0.00016438,2]
[396539295,1765043440061,-500.0,0.00016438,2]
[396539296,1765043440071,-500.0,0.00016438,2]
[396539297,1765043440081,-497.46858562,0.00016438,2]
[396539298,1765043440092,-502.26783342,0.00016438,2]
[396539299,1765043440102,-503.09452391,0.00016438,2]
[396539300,1765043440112,-502.34196995,0.00016438,2]
[396539301,1765043440122,-500.0,0.00016438,2]
[396539302,1765043440132,-501.68165406,0.00016438,2]
[396539303,1765043440142,-500.0,0.00016438,2]
[396539304,1765043440151,-500.0,0.00016438,2]
[396539305,1765043440161,-503.33909437,0.00016438,2]
[396539306,1765043440170,-500.0,0.00016438,2]
[396539307,1765043440179,-500.0,0.00016438,2]
[396539308,1765043440189,-503.688638,0.00016438,2]
[396539309,1765043440198,-501.98724946,0.00016438,2]
[396539310,1765043440208,-708.45,0.00016438,2]
[396539311,1765043440219,-500.0,0.00016438,2]
[396539312,1765043440228,-528.54,0.00016438,2]
[396539313,1765043440237,-502.76326903,0.00016438,2]
[396539314,1765043440249,-500.0,0.00016438,2]
[396539315,1765043440258,-500.0,0.00016438,2]
[396539317,1765043440267,-1156.41,0.00016438,2]
[396539319,1765043440276,-500.0,0.00016438,2]
[396539320,1765043440286,-510.76697966,0.00016438,2]
[396539321,1765043440295,-500.0,0.00016438,2]
[396539322,1765043440304,-500.0,0.00016438,2]
[396539323,1765043440314,-500.3265343,0.00016438,2]
[396539324,1765043440323,-503.43284398,0.00016438,2]
[396539325,1765043440332,-2652.71,0.00016438,2]
[396539326,1765043440342,-503.1183541,0.00016438,2]
[396539327,1765043440352,-502.3225069,0.00016438,2]
[396539328,1765043440362,-500.0,0.00016438,2]
[396539329,1765043440371,-500.0,0.00016438,2]
[396539331,1765043440381,-585.33,0.00016438,2]
[396539332,1765043440390,-500.0,0.00016438,2]
[396539333,1765043440400,-502.31542638,0.00016438,2]
[396539334,1765043440409,-500.0,0.00016438,2]
[396539335,1765043440418,-500.0,0.00016438,2]
[396539336,1765043440428,-500.0,0.00016438,2]
[396539337,1765043440437,-500.0,0.00016438,2]
[396539338,1765043440446,-574.64,0.00016438,2]
[396539340,1765043440456,-500.0,0.00016438,2]
[396539342,1765043440466,-500.0,0.00016438,2]
[396539344,1765043440475,-500.0,0.00016438,2]
[396539346,1765043440486,-500.0,0.00016438,2]
[396539348,1765043440495,-527.75,0.00016438,2]
[396539350,1765043440504,-500.0,0.00016438,2]
[396539352,1765043440513,-2243.78,0.00016438,2]
[396539354,1765043440523,-502.23095657,0.00016438,2]
[396539356,1765043440533,-542.2,0.00016438,2]
[396539358,1765043440542,-500.0,0.00016438,2]
[396539360,1765043440552,-500.0,0.00016438,2]
[396539363,1765043440561,-500.0,0.00016438,2]
[396539365,1765043440570,-390.00563522,0.00016438,2]
[396539367,1765043440579,-2634.1,0.00016438,2]
[396539370,1765043440589,-500.0,0.00016438,2]
[396539372,1765043440598,-500.0,0.00016438,2]
[396539374,1765043440606,-2468.83,0.00016438,2]
[396539376,1765043440616,-502.50500171,0.00016438,2]
[396539377,1765043440625,-525.88,0.00016438,2]
[396539379,1765043440634,-504.30609574,0.00016438,2]
[396539381,1765043440643,-500.0,0.00016438,2]
[396539383,1765043440653,-501.74411331,0.00016438,2]
[396539384,1765043440662,-500.0,0.00016438,2]
[396539386,1765043440671,-500.0,0.00016438,2]
[396539388,1765043440681,-500.0,0.00016438,2]
[396539390,1765043440690,-500.0,0.00016438,2]
[396539392,1765043440699,-500.0,0.00016438,2]
[396539394,1765043440708,-501.30900119,0.00016438,2]
[396539396,1765043440717,-500.0,0.00016438,2]
[396539398,1765043440733,-500.0,0.00016438,2]
[396539399,1765043440742,-597.7374744,0.00016438,2]
[396539401,1765043440751,-500.46109539,0.00016438,2]
[396539403,1765043440760,-503.56095678,0.00016438,2]
[396539405,1765043440770,-500.0,0.00016438,2]
[396539407,1765043440779,-500.0,0.00016438,2]